bitfinex/quotes_BTCUSD_20240721
["timestamp","ask_amount","ask_price","bid_price","bid_amount"]
[1721530993445,0.00184,67392.0,67391.0,1.09206874]
[1721530993667,0.00184,67392.0,67391.0,1.20628368]
[1721530993875,0.00184,67392.0,67391.0,1.3224866]
[1721530993876,0.00084,67392.0,67391.0,1.3224866]
[1721530994084,0.00284,67392.0,67391.0,1.3374866]
[1721530994505,0.00284,67392.0,67391.0,1.3874866]
[1721530994917,0.00084,67392.0,67391.0,1.5288866]
[1721530995129,0.00084,67392.0,67391.0,1.71368504]
[1721530995338,0.00184,67392.0,67391.0,1.72268504]
[1721530995545,0.00184,67392.0,67391.0,1.71368504]
[1721530995546,0.00084,67392.0,67391.0,1.71368504]
[1721530995975,0.00084,67392.0,67391.0,2.05110504]
[1721530996191,0.00184,67392.0,67391.0,2.05910504]
[1721530996404,0.00184,67392.0,67391.0,2.05907599]
[1721530996819,0.00084,67392.0,67391.0,2.05107599]
[1721530997042,0.00284,67392.0,67391.0,2.06807599]
[1721530997457,0.00284,67392.0,67391.0,2.05907599]
[1721530997659,0.00084,67392.0,67391.0,2.05107599]
[1721530997871,0.00284,67392.0,67391.0,2.07784541]
[1721530998077,0.00184,67392.0,67391.0,2.06784541]
[1721530998290,0.00184,67392.0,67391.0,2.11981767]
[1721530998497,0.00284,67392.0,67391.0,2.07784541]
[1721530998708,0.00284,67392.0,67391.0,2.11981792]
[1721530999122,0.00284,67392.0,67391.0,2.12981792]
[1721530999123,0.00384,67392.0,67391.0,2.12981792]
[1721530999582,0.00384,67392.0,67391.0,2.12982343]
[1721531000453,0.00384,67392.0,67391.0,1.89306435]
[1721531000661,0.00184,67392.0,67391.0,1.88306435]
[1721531001107,0.00284,67392.0,67391.0,1.89306435]
[1721531001526,0.00284,67392.0,67391.0,2.07785122]
[1721531001737,0.00184,67392.0,67391.0,2.06985122]
[1721531001950,0.00284,67392.0,67391.0,2.01900922]
[1721531002167,0.00084,67409.0,67408.0,0.745042]
[1721531002392,0.00084,67409.0,67408.0,0.89942374]
[1721531002601,0.00084,67409.0,67408.0,0.91166353]
[1721531002819,0.00084,67409.0,67408.0,0.90282153]
[1721531003257,0.00084,67409.0,67408.0,0.91166353]
[1721531003695,0.00184,67409.0,67408.0,0.91766353]
[1721531004328,0.00184,67409.0,67408.0,1.04084449]
[1721531004549,0.00184,67409.0,67408.0,1.39730449]
[1721531004787,0.00184,67409.0,67408.0,1.44730449]
[1721531005050,0.00084,67409.0,67408.0,1.44130449]
[1721531005266,0.00184,67409.0,67408.0,1.44730449]
[1721531005473,0.00184,67409.0,67408.0,1.45130449]
[1721531005682,0.00184,67409.0,67408.0,1.44530449]
[1721531005901,0.00084,67409.0,67408.0,1.33319417]
[1721531006126,0.00184,67409.0,67408.0,0.81747417]
[1721531006368,0.00184,67409.0,67408.0,0.80647784]
[1721531006584,0.00084,67409.0,67408.0,0.79747784]
[1721531007014,0.00084,67409.0,67408.0,0.80747784]
[1721531007015,0.00184,67409.0,67408.0,0.80747784]
[1721531008185,0.00184,67409.0,67408.0,0.80647784]
[1721531008397,0.00084,67409.0,67408.0,0.80647784]
[1721531008603,0.00184,67409.0,67408.0,1.05283784]
[1721531009042,0.00084,67409.0,67408.0,1.04383964]
[1721531009457,0.00184,67409.0,67408.0,1.05283964]
[1721531010952,0.419175,67409.0,67408.0,0.31663964]
[1721531011169,0.419175,67409.0,67408.0,0.19346353]
[1721531011170,0.656532,67409.0,67408.0,0.19346353]
[1721531011386,0.656532,67409.0,67408.0,0.03908179]
[1721531011613,0.893889,67409.0,67408.0,0.018]
[1721531011818,0.892889,67409.0,67408.0,0.017842]
[1721531012046,0.892889,67409.0,67408.0,0.008842]
[1721531012265,0.830774,67407.0,67406.0,0.008842]
[1721531013576,0.06214,67409.0,67399.0,0.008842]
[1721531013822,0.67207,67400.0,67399.0,0.008842]
[1721531014070,0.73337,67400.0,67399.0,0.008842]
[1721531014717,0.59348,67399.0,67398.0,0.008842]
[1721531015613,0.356088,67399.0,67398.0,0.008842]
[1721531016250,0.358088,67399.0,67398.0,0.008842]
[1721531016669,0.59548,67399.0,67398.0,0.008842]
[1721531016890,0.358088,67399.0,67398.0,0.008842]
[1721531017322,0.358088,67399.0,67398.0,0.13205061]
[1721531018172,0.360088,67399.0,67398.0,0.13205061]
[1721531018385,0.360088,67399.0,67398.0,0.008842]
[1721531018604,0.360088,67399.0,67398.0,0.13205105]
[1721531018826,0.360088,67399.0,67398.0,0.14429267]
[1721531021647,0.360088,67399.0,67398.0,0.14429086]
[1721531023350,0.004,67399.0,67398.0,0.2986726]
[1721531024448,0.002,67399.0,67398.0,0.2986726]
[1721531024676,0.002,67399.0,67398.0,0.17546536]
[1721531024890,0.004,67399.0,67398.0,0.29866925]
[1721531025151,0.002,67399.0,67398.0,0.36326925]
[1721531025559,0.004,67399.0,67398.0,0.36326925]
[1721531026200,0.002,67399.0,67398.0,0.36326925]
[1721531026843,0.118689,67403.0,67398.0,0.36326925]
[1721531027050,0.118689,67403.0,67402.0,0.008842]
[1721531027257,0.118689,67403.0,67402.0,0.28642763]
[1721531027889,0.118689,67403.0,67402.0,0.25514168]
[1721531028096,0.118689,67403.0,67402.0,0.37834032]
[1721531028722,0.122689,67403.0,67402.0,0.37834032]
[1721531029156,0.126689,67403.0,67402.0,0.37834032]
[1721531029776,0.130689,67403.0,67402.0,0.37834032]
[1721531031027,0.126689,67403.0,67402.0,0.25514168]
[1721531031237,0.122689,67403.0,67402.0,0.37834397]
[1721531031671,0.122689,67403.0,67402.0,0.37834443]
[1721531032088,0.126689,67403.0,67402.0,0.37834443]
[1721531032303,0.130689,67403.0,67402.0,0.37834213]
[1721531032720,0.118689,67403.0,67402.0,0.37834213]
[1721531032937,0.122689,67403.0,67402.0,0.37834213]
[1721531034219,0.122689,67403.0,67402.0,0.25514168]
[1721531034429,0.122689,67403.0,67402.0,0.37834423]
[1721531034640,0.125689,67403.0,67402.0,0.37834423]
[1721531035262,0.121689,67403.0,67402.0,0.37834423]
[1721531035486,0.118689,67403.0,67402.0,0.37834423]
[1721531035723,0.125689,67403.0,67402.0,0.37834423]
[1721531036138,0.126689,67403.0,67402.0,0.37834423]
[1721531036558,0.129689,67403.0,67402.0,0.37834423]
[1721531037025,0.129689,67403.0,67402.0,0.44454423]
[1721531037235,0.011,67403.0,67402.0,0.44454423]
[1721531037450,0.003,67403.0,67402.0,0.32134168]
[1721531037662,0.003,67403.0,67402.0,0.44454262]
[1721531037873,0.118684,67406.0,67405.0,0.008842]
[1721531038088,0.118684,67406.0,67405.0,0.13204182]
[1721531038301,0.118684,67406.0,67405.0,0.14365783]
[1721531039374,0.00084,67407.0,67406.0,0.157342]
[1721531039591,0.00084,67407.0,67406.0,0.43492214]
[1721531039795,0.00084,67407.0,67406.0,0.4465375]
[1721531040418,0.119522,67407.0,67406.0,0.4465375]
[1721531040654,0.119522,67407.0,67406.0,0.3233391]
[1721531040655,0.00084,67407.0,67406.0,0.3233391]
[1721531040859,0.00084,67407.0,67406.0,0.44653904]
[1721531041473,0.119522,67407.0,67406.0,0.44653904]
[1721531041683,0.122522,67407.0,67406.0,0.44653904]
[1721531041893,0.126522,67407.0,67406.0,0.44653904]
[1721531043211,0.363886,67407.0,67406.0,0.3233391]
[1721531043410,0.126522,67407.0,67406.0,0.29803803]
[1721531043830,0.126522,67407.0,67406.0,0.29803896]
[1721531044040,0.126522,67407.0,67406.0,0.1748391]
[1721531044261,0.126522,67407.0,67406.0,0.29804382]
[1721531044262,0.74465,67407.0,67406.0,0.29804382]
[1721531044511,0.74165,67407.0,67406.0,0.29804382]
[1721531044728,0.74465,67407.0,67406.0,0.29804382]
[1721531044947,0.67935,67407.0,67406.0,0.29804382]
[1721531045163,0.59425,67407.0,67406.0,0.28642846]
[1721531045376,0.59825,67407.0,67406.0,0.29804245]
[1721531045588,0.60125,67407.0,67406.0,0.29804245]
[1721531045824,0.60525,67407.0,67406.0,0.29804245]
[1721531046449,0.60525,67407.0,67406.0,0.14366071]
[1721531046666,0.59725,67407.0,67406.0,0.14366071]
[1721531046884,0.59725,67407.0,67406.0,0.13204672]
[1721531047071,0.60125,67407.0,67406.0,0.13204672]
[1721531047518,0.62446011,67407.0,67406.0,0.008842]
[1721531047737,1.00222411,67407.0,67406.0,0.008842]
[1721531047949,0.979014,67407.0,67406.0,0.008842]
[1721531048591,0.979014,67407.0,67406.0,0.13204722]
[1721531048592,0.982014,67407.0,67406.0,0.13204722]
[1721531048805,0.982014,67407.0,67406.0,0.008842]
[1721531048806,1.005014,67407.0,67406.0,0.008842]
[1721531050491,1.028224,67407.0,67406.0,0.008842]
[1721531050703,0.830784,67406.0,67405.0,0.008842]
[1721531050912,0.899884,67406.0,67405.0,0.13205037]
[1721531051125,0.899884,67406.0,67405.0,0.008842]
[1721531051344,0.899884,67406.0,67405.0,0.13205074]
[1721531052042,0.901884,67406.0,67405.0,0.008842]
[1721531052250,1.007984,67406.0,67405.0,0.13205051]
[1721531052701,1.007984,67406.0,67405.0,0.008842]
[1721531052917,1.007984,67406.0,67405.0,0.13204754]
[1721531053137,1.005984,67406.0,67405.0,0.13204754]
[1721531053352,1.009984,67406.0,67405.0,0.13304754]
[1721531053564,1.007984,67406.0,67405.0,0.13304754]
[1721531053783,1.0524199,67406.0,67405.0,0.13304754]
[1721531053992,1.0524199,67406.0,67405.0,0.13404754]
[1721531053993,1.015984,67406.0,67405.0,0.13404754]
[1721531054388,1.0604199,67406.0,67405.0,0.13404754]
[1721531055435,1.015984,67406.0,67405.0,0.13404754]
[1721531056136,1.015984,67406.0,67405.0,0.13404995]
[1721531056569,1.015984,67406.0,67405.0,0.1340499]
[1721531056782,1.015984,67406.0,67405.0,0.010842]
[1721531057199,0.74124051,67406.0,67405.0,0.13404981]
[1721531057408,0.74125728,67406.0,67405.0,0.13404981]
[1721531057610,0.74125728,67406.0,67405.0,0.14573914]
[1721531057825,0.74125728,67406.0,67405.0,0.13404981]
[1721531058035,0.74039683,67406.0,67405.0,0.14573914]
[1721531058479,0.74039683,67406.0,67405.0,0.44572088]
[1721531058480,0.36718955,67406.0,67405.0,0.44572088]
[1721531058686,0.43392983,67406.0,67405.0,0.44572088]
[1721531059106,0.36718955,67406.0,67405.0,0.44571636]
[1721531059782,0.433927,67406.0,67405.0,0.44571636]
[1721531059988,0.433927,67406.0,67405.0,0.44571662]
[1721531060422,0.36718955,67406.0,67405.0,0.44571662]
[1721531061920,0.41168377,67406.0,67405.0,0.44571662]
[1721531062350,0.41168361,67406.0,67405.0,0.44571303]
[1721531064082,0.64905061,67406.0,67405.0,0.44571303]
[1721531064298,0.67129764,67406.0,67405.0,0.30011303]
[1721531064730,0.67129764,67406.0,67405.0,0.29127103]
[1721531065600,0.67129692,67406.0,67405.0,0.29127393]
[1721531065827,0.67129692,67406.0,67405.0,0.29127391]
[1721531066033,0.67129692,67406.0,67405.0,0.30011591]
[1721531066298,0.60455655,67406.0,67405.0,0.30011591]
[1721531066928,0.64905311,67406.0,67405.0,0.30011591]
[1721531067978,0.41168611,67406.0,67405.0,0.30011591]
[1721531068841,0.41168114,67406.0,67405.0,0.30011179]
[1721531069265,0.41168098,67406.0,67405.0,0.30011178]
[1721531071950,0.41168098,67406.0,67405.0,0.30011141]
[1721531072562,0.36718955,67406.0,67405.0,0.30011141]
[1721531072955,0.41168098,67406.0,67405.0,0.30011141]
[1721531073386,0.41168098,67406.0,67405.0,0.44211141]
[1721531073590,0.36718955,67406.0,67405.0,0.44211141]
[1721531073991,0.36718955,67406.0,67405.0,0.43042208]
[1721531074411,0.36718955,67406.0,67405.0,0.44210823]
[1721531075049,0.36718955,67406.0,67405.0,0.44210674]
[1721531075881,0.43628955,67406.0,67405.0,0.44210674]
[1721531076101,0.48077424,67406.0,67405.0,0.44210674]
[1721531076534,0.48077424,67406.0,67405.0,0.43042059]
[1721531076993,0.48077424,67406.0,67405.0,0.44210674]
[1721531078259,0.48077322,67406.0,67405.0,0.31890989]
[1721531078446,0.48077322,67406.0,67405.0,0.44210913]
[1721531080240,0.71814022,67406.0,67405.0,0.44210913]
[1721531080878,0.71814022,67406.0,67405.0,0.43326713]
[1721531081306,0.71814022,67406.0,67405.0,0.30010913]
[1721531081597,0.67365655,67406.0,67405.0,0.30010913]
[1721531081807,0.71814969,67406.0,67405.0,0.30010913]
[1721531082016,0.71814991,67406.0,67405.0,0.30010913]
[1721531083747,0.64904991,67406.0,67405.0,0.30010913]
[1721531083953,0.71814991,67406.0,67405.0,0.30010913]
[1721531084791,0.7181579,67406.0,67405.0,0.30010913]
[1721531085616,0.6490579,67406.0,67405.0,0.30010913]
[1721531085821,0.6490579,67406.0,67405.0,0.44210913]
[1721531087914,0.60455655,67406.0,67405.0,0.31890989]
[1721531088122,0.64905989,67406.0,67405.0,0.44210847]
[1721531089366,0.60455655,67406.0,67405.0,0.44210847]
[1721531089787,0.60455655,67406.0,67405.0,0.43134632]
[1721531089989,0.60539655,67406.0,67405.0,0.44216373]
[1721531091061,0.60539655,67406.0,67405.0,0.31896515]
[1721531091273,0.60539655,67406.0,67405.0,0.44216243]
[1721531091484,0.60539655,67406.0,67405.0,0.31896515]
[1721531091666,0.60539655,67406.0,67405.0,0.44216229]
[1721531092511,0.60539655,67406.0,67405.0,0.31896515]
[1721531092715,0.60539655,67406.0,67405.0,0.44216244]
[1721531094181,0.60539655,67406.0,67405.0,0.44216224]
[1721531094388,0.36802955,67406.0,67405.0,0.44216156]
[1721531095444,0.36802955,67406.0,67405.0,0.43134415]
[1721531095881,0.36802955,67406.0,67405.0,0.44323942]
[1721531097625,0.36802955,67406.0,67405.0,0.44323888]
[1721531100662,0.36802955,67406.0,67405.0,0.32004301]
[1721531100877,0.36802955,67406.0,67405.0,0.44323962]
[1721531101305,0.36802955,67406.0,67405.0,0.44323977]
[1721531102634,0.41254119,67406.0,67405.0,0.44323977]
[1721531103248,0.41254286,67406.0,67405.0,0.44323996]
[1721531106406,0.36802955,67406.0,67405.0,0.32004301]
[1721531106614,0.41254655,67406.0,67405.0,0.44323978]
[1721531108358,0.36802955,67406.0,67405.0,0.44323978]
[1721531108806,0.41254655,67406.0,67405.0,0.44323978]
[1721531109438,0.36802955,67406.0,67405.0,0.44323978]
[1721531109645,0.36802955,67406.0,67405.0,0.44323903]
[1721531109868,0.41254655,67406.0,67405.0,0.44323903]
[1721531110296,0.13066255,67406.0,67405.0,0.44323903]
[1721531110730,0.17517955,67406.0,67405.0,0.44323903]
[1721531111158,0.13066255,67406.0,67405.0,0.44323903]
[1721531112907,0.13066255,67406.0,67405.0,0.44323814]
[1721531113126,0.17517956,67406.0,67405.0,0.44323814]
[1721531113307,0.17517943,67406.0,67405.0,0.44323857]
[1721531113582,0.13066255,67406.0,67405.0,0.44323857]
[1721531113791,0.36802955,67406.0,67405.0,0.44323857]
[1721531114642,0.41254656,67406.0,67405.0,0.44323857]
[1721531114857,0.36802955,67406.0,67405.0,0.4313433]
[1721531115066,0.41254899,67406.0,67405.0,0.4313433]
[1721531115293,0.41254899,67406.0,67405.0,0.44323776]
[1721531115506,0.41254899,67406.0,67405.0,0.4313433]
[1721531115713,0.41254899,67406.0,67405.0,0.44323776]
[1721531117840,0.36802955,67406.0,67405.0,0.44323776]
[1721531118253,0.41254937,67406.0,67405.0,0.4313433]
[1721531118674,0.41254937,67406.0,67405.0,0.44323776]
[1721531119103,0.41254972,67406.0,67405.0,0.44323949]
[1721531119310,0.36802955,67406.0,67405.0,0.44323949]
[1721531119523,0.41254957,67406.0,67405.0,0.44323949]
[1721531119808,0.36802955,67406.0,67405.0,0.3200422]
[1721531120020,0.4125495,67406.0,67405.0,0.44323975]
[1721531120647,0.4125495,67406.0,67405.0,0.43134529]
[1721531120857,0.36802955,67406.0,67405.0,0.43134529]
[1721531121070,0.36802955,67406.0,67405.0,0.44324032]
[1721531122353,0.36802955,67406.0,67405.0,0.32004277]
[1721531122553,0.36802955,67406.0,67405.0,0.44324032]
[1721531124012,0.17520223,67406.0,67405.0,0.44324032]
[1721531124835,0.16320223,67406.0,67405.0,0.44124032]
[1721531125042,0.17120223,67406.0,67405.0,0.44224032]
[1721531125244,0.17920223,67406.0,67405.0,0.44324032]
[1721531125694,0.17120223,67406.0,67405.0,0.44223916]
[1721531125907,0.16320223,67406.0,67405.0,0.44223916]
[1721531126359,0.04537968,67406.0,67405.0,0.44223916]
[1721531128711,0.00084,67406.0,67405.0,0.31904277]
[1721531128938,0.00084,67406.0,67405.0,0.44223916]
[1721531128939,0.04538222,67406.0,67405.0,0.44223916]
[1721531129366,0.04538222,67406.0,67405.0,0.91698116]
[1721531129587,0.00084,67406.0,67405.0,1.50979768]
[1721531129803,0.00084,67406.0,67405.0,1.27242668]
[1721531130058,0.00084,67406.0,67405.0,1.22044132]
[1721531130521,0.00084,67406.0,67405.0,1.03566616]
[1721531130753,0.00084,67406.0,67405.0,1.27241525]
[1721531131595,0.00084,67406.0,67405.0,1.03566616]
[1721531132016,0.00084,67406.0,67405.0,1.22042377]
[1721531134474,0.00084,67406.0,67405.0,1.27239662]
[1721531135127,0.00084,67406.0,67405.0,1.27238827]
[1721531136466,0.00084,67406.0,67405.0,1.0356477]
[1721531136665,0.00084,67406.0,67405.0,1.27238827]
[1721531136891,0.00084,67406.0,67405.0,1.08762138]
[1721531137094,0.00084,67406.0,67405.0,1.27238656]
[1721531137331,0.00084,67406.0,67405.0,1.34148656]
[1721531138262,0.00084,67406.0,67405.0,0.98156977]
[1721531138435,0.00084,67406.0,67405.0,1.3414792]
[1721531138720,0.00084,67406.0,67405.0,1.34148038]
[1721531139095,0.00084,67406.0,67405.0,1.10474583]
[1721531139427,0.00084,67406.0,67405.0,1.03564583]
[1721531141380,0.00084,67406.0,67405.0,1.03564718]
[1721531142441,0.00084,67406.0,67405.0,1.04158918]
[1721531147788,0.00084,67406.0,67405.0,0.80421833]
[1721531151005,0.00084,67406.0,67405.0,0.68104077]
[1721531151211,0.00084,67406.0,67405.0,0.80421833]
[1721531151417,0.00084,67406.0,67405.0,0.68104077]
[1721531151650,0.00084,67406.0,67405.0,0.80421833]
[1721531152382,0.00084,67406.0,67405.0,1.04096209]
[1721531153811,0.00084,67406.0,67405.0,1.04089062]
[1721531154276,0.00084,67406.0,67405.0,1.04089061]
[1721531156386,0.00084,67406.0,67405.0,0.9889132]
[1721531157175,0.00084,67406.0,67405.0,1.2262842]
[1721531157421,0.00084,67406.0,67405.0,1.29538425]
[1721531160591,0.00084,67406.0,67405.0,0.9874403]
[1721531160800,0.00084,67406.0,67405.0,1.29538425]
[1721531164639,0.00084,67406.0,67405.0,1.22628425]
[1721531169520,0.00084,67406.0,67405.0,1.22628415]
[1721531172635,0.00084,67406.0,67405.0,1.22628213]
[1721531172995,0.00084,67406.0,67405.0,0.9183403]
[1721531173221,0.00084,67406.0,67405.0,1.22628283]
[1721531174888,0.00084,67406.0,67405.0,0.98006983]
[1721531175089,0.00084,67406.0,67405.0,0.98891183]
[1721531175689,0.00084,67406.0,67405.0,0.9889139]
[1721531175894,0.00084,67406.0,67405.0,0.9800719]
[1721531176099,0.00084,67406.0,67405.0,0.9889139]
[1721531177492,0.202123,67406.0,67405.0,0.30014914]
[1721531177698,0.43949,67406.0,67405.0,0.30014914]
[1721531177921,0.47736266,67406.0,67405.0,0.30014914]
[1721531178464,0.47736266,67406.0,67405.0,0.28825411]
[1721531178742,0.47736266,67406.0,67405.0,0.30162749]
[1721531181165,0.43949,67406.0,67405.0,0.30162749]
[1721531181937,0.43949,67406.0,67405.0,0.30162721]
[1721531185221,0.43949,67406.0,67405.0,0.30162712]
[1721531185644,0.35689,67406.0,67405.0,0.17843653]
[1721531185848,0.35689,67406.0,67405.0,0.3016273]
[1721531188408,0.35689,67406.0,67405.0,0.30162728]
[1721531188774,0.35610256,67406.0,67405.0,0.30162728]
[1721531191611,0.35610256,67406.0,67405.0,0.30162832]
[1721531194670,0.35610256,67406.0,67405.0,0.17843653]
[1721531194883,0.35610256,67406.0,67405.0,0.30162868]
[1721531195667,5.256e-05,67406.0,67405.0,0.30162868]
[1721531195826,5.256e-05,67406.0,67405.0,0.38172868]
[1721531197903,5.256e-05,67406.0,67405.0,0.38172741]
[1721531199133,0.11873556,67406.0,67405.0,0.30162741]
[1721531201007,0.11873556,67406.0,67405.0,0.17843653]
[1721531201211,0.11873556,67406.0,67405.0,0.30162783]
[1721531203536,0.35610256,67406.0,67405.0,0.30162783]
[1721531203736,0.35610256,67406.0,67405.0,0.28826757]
[1721531203946,0.35610256,67406.0,67405.0,0.30162849]
[1721531210318,0.35610256,67406.0,67405.0,0.14731822]
[1721531210846,0.35610256,67406.0,67405.0,0.14731907]
[1721531212991,0.35610256,67406.0,67405.0,0.02412692]
[1721531213258,0.35610256,67406.0,67405.0,0.14731907]
[1721531213957,0.35610256,67406.0,67405.0,0.02412692]
[1721531214179,0.35610256,67406.0,67405.0,0.14731907]
[1721531214427,0.35610256,67406.0,67405.0,0.02412692]
[1721531214660,0.35610256,67406.0,67405.0,0.14731907]
[1721531216285,0.35610256,67406.0,67405.0,0.29241907]
[1721531217249,0.35610256,67406.0,67405.0,0.2924187]
[1721531217711,0.35610256,67406.0,67405.0,0.29241866]
[1721531219446,5.256e-05,67406.0,67405.0,0.5654854]
[1721531219688,5.256e-05,67406.0,67405.0,0.4468004]
[1721531220366,5.256e-05,67406.0,67405.0,0.4467977]
[1721531222681,5.256e-05,67406.0,67405.0,0.32360866]
[1721531222852,5.256e-05,67406.0,67405.0,0.44679792]
[1721531229183,5.256e-05,67406.0,67405.0,0.44679785]
[1721531235958,5.256e-05,67406.0,67405.0,0.32360866]
[1721531236171,5.256e-05,67406.0,67405.0,0.44679784]
[1721531236375,5.256e-05,67406.0,67405.0,0.56548284]
[1721531236578,5.256e-05,67406.0,67405.0,0.80285384]
[1721531236960,5.256e-05,67406.0,67405.0,0.56548284]
[1721531238571,5.256e-05,67406.0,67405.0,0.44229366]
[1721531238778,5.256e-05,67406.0,67405.0,0.56548283]
[1721531244017,5.256e-05,67406.0,67405.0,1.03961232]
[1721531244421,5.256e-05,67406.0,67405.0,0.98763001]
[1721531244653,5.256e-05,67406.0,67405.0,1.53147201]
[1721531245014,5.256e-05,67406.0,67405.0,1.53145246]
[1721531248303,5.256e-05,67406.0,67405.0,1.53144996]
[1721531248697,5.256e-05,67406.0,67405.0,1.53144912]
[1721531251436,5.256e-05,67406.0,67405.0,1.15440666]
[1721531251635,5.256e-05,67406.0,67405.0,1.46234759]
[1721531252245,5.256e-05,67406.0,67405.0,1.58144759]
[1721531252694,5.256e-05,67406.0,67405.0,1.63144759]
[1721531252895,5.256e-05,67406.0,67405.0,1.58144759]
[1721531253969,5.256e-05,67406.0,67405.0,1.58444759]
[1721531254393,5.256e-05,67406.0,67405.0,1.58944759]
[1721531254608,5.256e-05,67406.0,67405.0,1.58944717]
[1721531254814,5.256e-05,67406.0,67405.0,1.58044717]
[1721531255237,5.256e-05,67406.0,67405.0,1.53044717]
[1721531255657,0.00105256,67406.0,67405.0,1.58844717]
[1721531255866,0.00105256,67406.0,67405.0,1.63844717]
[1721531256954,0.00205256,67406.0,67405.0,1.64644717]
[1721531257157,5.256e-05,67406.0,67405.0,1.63044717]
[1721531257358,0.00105256,67406.0,67405.0,1.64144717]
[1721531257569,0.00205256,67406.0,67405.0,1.65544717]
[1721531257787,0.00105256,67406.0,67405.0,1.80074041]
[1721531258007,5.256e-05,67406.0,67405.0,2.06859753]
[1721531258215,0.00105256,67406.0,67405.0,2.16642292]
[1721531258417,0.00105256,67406.0,67405.0,2.49528292]
[1721531259124,5.256e-05,67406.0,67405.0,2.48128292]
[1721531259542,5.256e-05,67406.0,67405.0,2.15240045]
[1721531259972,5.256e-05,67406.0,67405.0,2.48127251]
[1721531260176,0.00105256,67406.0,67405.0,2.5285658]
[1721531260387,0.00105256,67406.0,67405.0,2.59524591]
[1721531260591,0.00105256,67406.0,67405.0,2.58124591]
[1721531260800,0.00105256,67406.0,67405.0,2.59524591]
[1721531261006,0.00305256,67406.0,67405.0,2.6092069]
[1721531261412,0.00305256,67406.0,67405.0,2.60920679]
[1721531261614,0.00305256,67406.0,67405.0,2.28898676]
[1721531262444,0.00305256,67406.0,67405.0,2.22230692]
[1721531262647,0.00305256,67406.0,67405.0,2.61785022]
[1721531262851,0.00305256,67406.0,67405.0,2.55117038]
[1721531263259,0.00305256,67406.0,67405.0,3.21117038]
[1721531263468,0.00305256,67406.0,67405.0,2.77454138]
[1721531263469,0.00205256,67406.0,67405.0,2.77454138]
[1721531263674,0.00205256,67406.0,67405.0,2.94246985]
[1721531263675,0.00305256,67406.0,67405.0,2.94246985]
[1721531263879,0.00305256,67406.0,67405.0,2.92846985]
[1721531263880,0.00105256,67406.0,67405.0,2.92846985]
[1721531264087,0.00105256,67406.0,67405.0,2.92836934]
[1721531264297,5.256e-05,67406.0,67405.0,2.95136934]
[1721531264495,0.00105256,67406.0,67405.0,2.95136934]
[1721531264911,0.00105256,67406.0,67405.0,2.96536934]
[1721531265118,5.256e-05,67406.0,67405.0,2.93736934]
[1721531265332,0.00105256,67406.0,67405.0,2.95136934]
[1721531265537,0.00105256,67406.0,67405.0,2.96536934]
[1721531265737,0.00084,67407.0,67406.0,1.71546]
[1721531265968,0.00084,67407.0,67406.0,2.84780536]
[1721531266172,0.00084,67407.0,67406.0,2.86114296]
[1721531266565,0.00084,67409.0,67408.0,1.570622]
[1721531266807,0.00084,67409.0,67408.0,2.91407336]
[1721531267010,0.00084,67409.0,67408.0,2.92740978]
[1721531267215,0.00084,67409.0,67408.0,2.92734196]
[1721531267419,0.00084,67409.0,67408.0,2.86849996]
[1721531267622,0.00084,67409.0,67408.0,2.92734196]
[1721531268034,0.00084,67409.0,67408.0,3.55734196]
[1721531268484,0.00084,67409.0,67408.0,3.58534196]
[1721531268735,0.00084,67409.0,67408.0,3.52534196]
[1721531269257,0.00084,67409.0,67408.0,3.51134196]
[1721531269472,0.00838,67415.0,67414.0,1.712706]
[1721531269704,0.00838,67415.0,67414.0,2.98846433]
[1721531269943,0.00838,67415.0,67414.0,3.00178676]
[1721531270438,0.00838,67415.0,67414.0,2.61142231]
[1721531270688,0.00838,67415.0,67414.0,3.72821109]
[1721531270945,0.00838,67415.0,67414.0,3.72821121]
[1721531271192,0.00838,67415.0,67414.0,3.66821121]
[1721531271436,0.00838,67415.0,67414.0,3.0017357]
[1721531271672,0.00838,67416.0,67415.0,1.570484]
[1721531271930,0.00838,67416.0,67415.0,2.91136136]
[1721531272204,0.00838,67416.0,67415.0,3.53187114]
[1721531272666,0.00838,67416.0,67415.0,3.58185943]
[1721531272902,0.00838,67416.0,67415.0,2.93585943]
[1721531273352,0.00838,67416.0,67415.0,2.86939063]
[1721531273632,0.00838,67416.0,67415.0,2.54062927]
[1721531273883,0.00838,67416.0,67415.0,2.86937324]
[1721531274102,0.00838,67416.0,67415.0,2.75125837]
[1721531274331,0.002,67439.0,67423.0,0.383795]
[1721531274542,0.002,67439.0,67423.0,1.83784164]
[1721531274781,0.002,67439.0,67423.0,2.32575274]
[1721531274985,0.002,67439.0,67423.0,2.71694084]
[1721531275366,0.002,67439.0,67423.0,2.67269719]
[1721531275586,0.002,67439.0,67423.0,2.68669719]
[1721531275790,0.002,67439.0,67423.0,2.67269719]
[1721531276194,0.002,67439.0,67423.0,2.68669719]
[1721531276404,0.002,67439.0,67423.0,2.57702994]
[1721531276554,0.002,67439.0,67423.0,2.51547453]
[1721531276767,0.002,67439.0,67423.0,2.73090501]
[1721531276973,0.002,67439.0,67423.0,2.73088253]
[1721531277174,0.002,67439.0,67423.0,2.74488185]
[1721531277385,0.002,67439.0,67423.0,2.74486978]
[1721531277734,0.002,67439.0,67423.0,2.56299167]
[1721531277938,0.002,67439.0,67423.0,2.57699167]
[1721531278102,0.002,67439.0,67423.0,2.7448694]
[1721531278282,0.002,67439.0,67423.0,2.73086865]
[1721531278482,0.002,67439.0,67423.0,2.54679072]
[1721531278918,0.002,67439.0,67423.0,2.74486813]
[1721531279529,0.002,67439.0,67423.0,3.35486839]
[1721531279729,0.002,67439.0,67423.0,2.74486839]
[1721531280033,0.002,67439.0,67438.0,0.108842]
[1721531280229,0.002,67439.0,67438.0,2.10701949]
[1721531280437,0.002,67439.0,67438.0,2.12030775]
[1721531281021,0.002,67439.0,67438.0,2.13430775]
[1721531281215,0.002,67439.0,67438.0,2.14830775]
[1721531281907,0.002,67439.0,67438.0,2.09830775]
[1721531282085,0.002,67439.0,67438.0,1.88620775]
[1721531282218,0.002,67439.0,67438.0,1.95530775]
[1721531283454,0.0831,67439.0,67438.0,1.71805375]
[1721531283663,0.002,67439.0,67438.0,1.71805375]
[1721531284924,0.002,67439.0,67438.0,1.76805375]
[1721531285475,0.002,67439.0,67438.0,1.76805853]
[1721531287860,0.1437,67439.0,67438.0,0.61226953]
[1721531288065,0.1437,67439.0,67438.0,0.32761501]
[1721531288278,0.16498,67439.0,67438.0,0.32761501]
[1721531288481,0.520856,67439.0,67438.0,0.32761501]
[1721531288683,0.499576,67439.0,67438.0,0.31877301]
[1721531288884,0.499576,67439.0,67438.0,0.30032675]